fUST/lending_fUST_20250116
["ID","MTS","AMOUNT","RATE_DAILY","PERIOD"]
[349078530,1736962243521,-532.21681868,0.00019863,3]
[349078531,1736962243531,-500.0,0.00019863,3]
[349078532,1736962243541,-4310.93,0.00019863,3]
[349078533,1736962243550,-500.0,0.00019863,3]
[349078534,1736962243560,-500.0,0.00019863,3]
[349078535,1736962243570,-500.0,0.00019863,3]
[349078536,1736962243580,-500.0,0.00019863,3]
[349078537,1736962243590,-500.0,0.00019863,3]
[349078538,1736962243600,-500.0,0.00019863,3]
[349078539,1736962243620,-500.0,0.00019863,3]
[349078540,1736962243639,-2291.01,0.000199,2]
[349078541,1736962243659,-151.0,0.000199,2]
[349078542,1736962243680,-1228.19384623,0.000199,2]
[349078543,1736962243700,-500.0,0.00019921,2]
[349078544,1736962243719,-500.0,0.00019921,2]
[349078545,1736962243740,-3677.0,0.0002,2]
[349078546,1736962243755,-160.0,0.0002,2]
[349078547,1736962243771,-500.0,0.0002,3]
[349078548,1736962243791,-500.0,0.0002,3]
[349078549,1736962243811,-500.0,0.0002,3]
[349078550,1736962243829,-500.0,0.0002,3]
[349078551,1736962243842,-500.0,0.0002,3]
[349078552,1736962243862,-500.0,0.0002,3]
[349078553,1736962243876,-500.0,0.0002,3]
[349078554,1736962243893,-351.70826812,0.0002,3]
[349078555,1736962243907,-649.06697316,0.0002,3]
[349078556,1736962243921,-500.0,0.0002,3]
[349078557,1736962243938,-500.0,0.0002,3]
[349078558,1736962243952,-175.97,0.0002,3]
[349078559,1736962243969,-411.36255985,0.0002,3]
[349078560,1736962243984,-151.0,0.0002,4]
[349078561,1736962243998,-500.0,0.0002,3]
[349078562,1736962244012,-500.0,0.0002,3]
[349078563,1736962244026,-500.0,0.0002,3]
[349078564,1736962244041,-592.3,0.0002,2]
[349078565,1736962244057,-500.0,0.0002,3]
[349078566,1736962244072,-500.0,0.0002,3]
[349078567,1736962244087,-9748.22,0.0002,3]
[349078568,1736962244102,-500.0,0.0002,3]
[349078569,1736962244118,-2113.95,0.0002,3]
[349078570,1736962244132,-500.0,0.0002,3]
[349078571,1736962244147,-500.0,0.0002,3]
[349078572,1736962244163,-500.0,0.0002,3]
[349078573,1736962244174,-500.0,0.0002,3]
[349078574,1736962244184,-1000.0,0.0002,20]
[349078575,1736962244194,-1000.0,0.0002,3]
[349078576,1736962244204,-500.0,0.0002,3]
[349078577,1736962244215,-500.0,0.0002,3]
[349078578,1736962244225,-812.23,0.0002,3]
[349078579,1736962244235,-1119.83,0.0002,3]
[349078580,1736962244246,-746.63,0.0002,3]
[349078581,1736962244255,-2491.16,0.0002,3]
[349078582,1736962244397,-500.0,0.0002,3]
[349078583,1736962244415,-500.0,0.0002,3]
[349078584,1736962244427,-500.0,0.0002,3]
[349078585,1736962244437,-500.0,0.0002,3]
[349078586,1736962244447,-15248.44,0.0002,3]
[349078587,1736962244457,-2130.30032701,0.0002,2]
[349078588,1736962244467,-397.09570826,0.0002,2]
[349078589,1736962244476,-1461.28,0.0002,3]
[349078590,1736962244486,-500.0,0.0002,3]
[349078591,1736962244495,-534.97,0.0002,3]
[349078592,1736962244505,-1343.69,0.0002,3]
[349078593,1736962244515,-151.0,0.0002,3]
[349078594,1736962244525,-500.0,0.0002,3]
[349078595,1736962244534,-500.0,0.0002,3]
[349078596,1736962244544,-500.0,0.0002,3]
[349078597,1736962244554,-500.0,0.0002,3]
[349078598,1736962244563,-1285.86,0.0002,3]
[349078599,1736962244574,-500.0,0.0002,3]
[349078600,1736962244583,-716.02,0.0002,3]
[349078601,1736962244593,-627.74,0.0002,3]
[349078602,1736962244603,-769.62,0.0002,3]
[349078603,1736962244612,-500.0,0.0002,3]
[349078604,1736962244622,-578.53,0.0002,3]
[349078605,1736962244632,-500.0,0.0002,3]
[349078606,1736962244644,-4310.93,0.0002,3]
[349078607,1736962244655,-500.0,0.0002,3]
[349078608,1736962244665,-500.0,0.0002,3]
[349078609,1736962244675,-500.0,0.0002,3]
[349078610,1736962244686,-500.0,0.0002,3]
[349078611,1736962244695,-265.77,0.0002,3]
[349078612,1736962244708,-221.76154267,0.0002,3]
[349078613,1736962244718,-500.0,0.0002,3]
[349078614,1736962244728,-1000.0,0.00020021,2]
[349078615,1736962244737,-500.0,0.00020021,2]
[349078616,1736962244748,-1000.0,0.00020021,2]
[349078617,1736962244758,-1228.19384605,0.00020038,2]
[349078618,1736962244768,-587.0,0.00020102,2]
[349078619,1736962244778,-500.0,0.00020136,3]
[349078620,1736962244790,-500.0,0.00020136,3]
[349078621,1736962244800,-500.0,0.00020136,3]
[349078622,1736962244810,-500.0,0.00020136,3]
[349078623,1736962244820,-500.0,0.00020136,3]
[349078624,1736962244829,-500.0,0.00020136,3]
[349078625,1736962244839,-500.0,0.00020136,3]
[349078626,1736962244848,-500.0,0.00020136,3]
[349078627,1736962244858,-500.0,0.00020136,3]
[349078628,1736962244868,-500.0,0.00020136,3]
[349078629,1736962244878,-500.0,0.00020136,3]
[349078630,1736962244890,-500.0,0.00020136,3]
[349078631,1736962244900,-592.3,0.00020136,2]
[349078632,1736962244909,-500.0,0.00020136,3]
[349078633,1736962244919,-435.76527006,0.00020136,3]
[349078634,1736962244929,-9748.22,0.00020136,3]
[349078635,1736962244939,-500.0,0.00020136,3]
[349078636,1736962244949,-2113.95,0.00020136,3]
[349078637,1736962244959,-500.0,0.00020136,3]
[349078638,1736962244969,-500.0,0.00020136,3]
[349078639,1736962244979,-500.0,0.00020136,3]
[349078640,1736962244989,-500.0,0.00020136,3]
[349078641,1736962244999,-500.0,0.00020136,3]
[349078642,1736962245008,-500.0,0.00020136,3]
[349078643,1736962245018,-812.23,0.00020136,3]
[349078644,1736962245028,-1119.83,0.00020136,3]
[349078645,1736962245038,-746.63,0.00020136,3]
[349078646,1736962245048,-500.0,0.00020136,3]
[349078647,1736962245059,-2491.16,0.00020136,3]
[349078648,1736962245069,-500.0,0.00020136,3]
[349078649,1736962245079,-536.67018635,0.00020136,3]
[349078650,1736962245089,-500.0,0.00020136,3]
[349078651,1736962245100,-15248.44,0.00020136,3]
[349078652,1736962245110,-1461.28,0.00020136,3]
[349078653,1736962245120,-500.0,0.00020136,3]
[349078654,1736962245129,-534.97,0.00020136,3]
[349078655,1736962245142,-1343.69,0.00020136,3]
[349078656,1736962245152,-500.0,0.00020136,3]
[349078657,1736962245162,-500.0,0.00020136,3]
[349078658,1736962245172,-500.0,0.00020136,3]
[349078659,1736962245184,-500.0,0.00020136,3]
[349078660,1736962245193,-1285.86,0.00020136,3]
[349078661,1736962245203,-500.0,0.00020136,3]
[349078662,1736962245213,-716.02,0.00020136,3]
[349078663,1736962245223,-627.74,0.00020136,3]
[349078664,1736962245233,-769.62,0.00020136,3]
[349078665,1736962245242,-585.63,0.00020136,3]
[349078666,1736962245252,-578.53,0.00020136,3]
[349078667,1736962245263,-500.0,0.00020136,3]
[349078668,1736962245273,-4310.93,0.00020136,3]
[349078669,1736962245283,-500.0,0.00020136,3]
[349078670,1736962245293,-500.0,0.00020136,3]
[349078671,1736962245303,-500.0,0.00020136,3]
[349078672,1736962245313,-500.0,0.00020136,3]
[349078673,1736962245323,-500.0,0.00020136,3]
[349078674,1736962245333,-1228.19384605,0.00020176,2]
[349078675,1736962245343,-151.0,0.000202,4]
[349078676,1736962245353,-500.0,0.00020273,3]
[349078677,1736962245363,-500.0,0.00020273,3]
[349078678,1736962245373,-500.0,0.00020273,3]
[349078679,1736962245384,-500.0,0.00020273,3]
[349078680,1736962245395,-500.0,0.00020273,3]
[349078681,1736962245405,-500.0,0.00020273,3]
[349078682,1736962245415,-500.0,0.00020273,3]
[349078683,1736962245425,-500.0,0.00020273,3]
[349078684,1736962245435,-500.0,0.00020273,3]
[349078685,1736962245445,-500.0,0.00020273,3]
[349078686,1736962245455,-500.0,0.00020273,3]
[349078687,1736962245465,-500.0,0.00020273,3]
[349078688,1736962245475,-592.3,0.00020273,2]
[349078689,1736962245486,-500.0,0.00020273,3]
[349078690,1736962245496,-9748.22,0.00020273,3]
[349078691,1736962245507,-500.0,0.00020273,3]
[349078693,1736962245519,-2113.95,0.00020273,3]
[349078694,1736962245528,-500.0,0.00020273,3]
[349078695,1736962245538,-500.0,0.00020273,3]
[349078696,1736962245548,-500.0,0.00020273,3]
[349078697,1736962245558,-500.0,0.00020273,3]
[349078698,1736962245568,-500.0,0.00020273,3]
[349078699,1736962245578,-500.0,0.00020273,3]
[349078700,1736962245587,-812.23,0.00020273,3]
[349078701,1736962245597,-1119.83,0.00020273,3]
[349078702,1736962245607,-746.63,0.00020273,3]
[349078703,1736962245617,-500.0,0.00020273,3]
[349078704,1736962245627,-2491.16,0.00020273,3]
[349078705,1736962245639,-500.0,0.00020273,3]
[349078706,1736962245648,-500.0,0.00020273,3]
[349078707,1736962245658,-15248.44,0.00020273,3]
[349078708,1736962245667,-1461.28,0.00020273,3]
[349078709,1736962245677,-500.0,0.00020273,3]
[349078710,1736962245688,-534.97,0.00020273,3]
[349078711,1736962245700,-1343.69,0.00020273,3]
[349078712,1736962245711,-500.0,0.00020273,3]
[349078713,1736962245722,-500.0,0.00020273,3]
[349078714,1736962245732,-500.0,0.00020273,3]
[349078715,1736962245743,-500.0,0.00020273,3]
[349078716,1736962245752,-1285.86,0.00020273,3]
[349078717,1736962245762,-500.0,0.00020273,3]
[349078718,1736962245772,-716.02,0.00020273,3]
[349078719,1736962245783,-627.74,0.00020273,3]
[349078720,1736962245794,-769.62,0.00020273,3]
[349078721,1736962245807,-151.0,0.00020273,2]
[349078722,1736962245818,-578.53,0.00020273,3]
[349078723,1736962245829,-610.48,0.00020273,3]
[349078724,1736962245839,-4310.93,0.00020273,3]
[349078725,1736962245850,-500.0,0.00020273,3]
[349078726,1736962245860,-500.0,0.00020273,3]
[349078727,1736962245870,-500.0,0.00020273,3]
[349078728,1736962245879,-500.0,0.00020273,3]
[349078729,1736962245891,-3623.601474,0.00020273,2]
[349078730,1736962245900,-3623.601474,0.00020273,2]
[349078731,1736962245909,-500.0,0.00020273,3]
[349078732,1736962245920,-5562.34,0.000203,2]
[349078733,1736962245930,-151.0,0.000203,3]
[349078734,1736962245940,-939.95213419,0.000203,2]
[349078736,1736962245966,-500.0,0.00019176,2]
[349078738,1736962245976,-47.85567681,0.000203,2]
[349078740,1736962245986,-987.807811,0.000203,2]
[349078742,1736962245996,-1228.19384605,0.00020314,2]
[349078744,1736962246006,-500.0,0.00020341,2]
[349078745,1736962246016,-500.0,0.0002041,3]
[349078746,1736962246026,-500.0,0.0002041,3]
[349078747,1736962246036,-500.0,0.0002041,3]
[349078749,1736962246046,-500.0,0.0002041,3]
[349078750,1736962246057,-500.0,0.0002041,3]
[349078751,1736962246070,-391.38,0.0002041,3]
[349078752,1736962246080,-605.10784471,0.0002041,3]
[349078754,1736962246090,-500.0,0.0002041,3]
[349078756,1736962246101,-500.0,0.0002041,3]
[349078757,1736962246111,-500.0,0.0002041,3]
[349078759,1736962246121,-500.0,0.0002041,3]
[349078761,1736962246131,-500.0,0.0002041,3]
[349078763,1736962246143,-592.3,0.0002041,2]
[349078764,1736962246153,-500.0,0.0002041,3]
[349078766,1736962246164,-9748.22,0.0002041,3]
[349078768,1736962246173,-500.0,0.0002041,3]
[349078769,1736962246183,-2113.95,0.0002041,3]
[349078770,1736962246194,-500.0,0.0002041,3]
[349078771,1736962246203,-500.0,0.0002041,3]
[349078772,1736962246214,-500.0,0.0002041,3]
[349078773,1736962246224,-500.0,0.0002041,3]
[349078774,1736962246234,-500.0,0.0002041,3]
[349078775,1736962246244,-500.0,0.0002041,3]
[349078776,1736962246254,-812.23,0.0002041,3]
[349078778,1736962246264,-1119.83,0.0002041,3]
[349078779,1736962246275,-746.63,0.0002041,3]
[349078781,1736962246285,-500.0,0.0002041,3]
[349078782,1736962246295,-2491.16,0.0002041,3]
[349078783,1736962246305,-500.0,0.0002041,3]
[349078784,1736962246315,-1323.747913,0.0002041,2]
[349078785,1736962246325,-1323.747913,0.0002041,2]
[349078786,1736962246335,-229.011764,0.0002041,2]
[349078787,1736962246344,-500.0,0.0002041,3]
[349078788,1736962246356,-229.011764,0.0002041,2]
[349078789,1736962246366,-15248.44,0.0002041,3]
[349078790,1736962246376,-6530.198668,0.0002041,2]
[349078791,1736962246386,-1461.28,0.0002041,3]
[349078792,1736962246397,-2389.069578,0.0002041,2]
[349078793,1736962246408,-6530.198668,0.0002041,2]
[349078794,1736962246418,-500.0,0.0002041,3]
[349078795,1736962246428,-2389.069578,0.0002041,2]
[349078796,1736962246519,-534.97,0.0002041,3]
[349078797,1736962246531,-1343.69,0.0002041,3]
[349078798,1736962246542,-500.0,0.0002041,3]
[349078799,1736962246551,-500.0,0.0002041,3]
[349078800,1736962246561,-500.0,0.0002041,3]
[349078801,1736962246572,-151.0,0.0002041,2]
[349078802,1736962246581,-500.0,0.0002041,3]
[349078803,1736962246591,-151.0,0.0002041,2]
[349078804,1736962246601,-1285.86,0.0002041,3]
[349078805,1736962246611,-500.0,0.0002041,3]
[349078806,1736962246621,-716.02,0.0002041,3]
[349078807,1736962246630,-627.74,0.0002041,3]
[349078808,1736962246641,-769.62,0.0002041,3]
[349078809,1736962246651,-578.53,0.0002041,3]
[349078810,1736962246660,-4310.93,0.0002041,3]
[349078811,1736962246671,-500.0,0.0002041,3]
[349078812,1736962246681,-500.0,0.0002041,3]
[349078813,1736962246690,-250.68,0.0002041,3]
[349078814,1736962246699,-500.0,0.0002041,3]
[349078815,1736962246713,-500.0,0.0002041,3]
[349078816,1736962246722,-281.677871,0.00020447,2]
[349078817,1736962246733,-1228.19384605,0.00020452,2]
[349078818,1736962246742,-158.225062,0.00020521,2]
[349078819,1736962246754,-500.0,0.00020528,2]
[349078820,1736962246764,-500.0,0.00020528,2]
[349078821,1736962246775,-500.0,0.00020547,3]
[349078822,1736962246787,-259.03952763,0.00020547,3]
[349078823,1736962246797,-500.0,0.00020547,3]
[349078824,1736962246807,-500.0,0.00020547,3]
[349078825,1736962246816,-500.0,0.00020547,3]
[349078826,1736962246826,-173.45949388,0.00020547,3]
[349078827,1736962246835,-500.0,0.00020547,3]
[349078828,1736962246844,-500.0,0.00020547,3]
[349078829,1736962246854,-500.0,0.00020547,3]
[349078830,1736962246864,-512.23756931,0.00020547,3]
[349078831,1736962246874,-500.0,0.00020547,3]
[349078832,1736962246883,-500.0,0.00020547,3]
[349078833,1736962246893,-500.0,0.00020547,3]
[349078834,1736962246902,-500.0,0.00020547,3]
[349078835,1736962246912,-500.0,0.00020547,3]
[349078836,1736962246922,-2134.174093,0.00020547,2]
[349078837,1736962246932,-2134.174093,0.00020547,2]
[349078838,1736962246941,-500.0,0.00020547,3]
[349078839,1736962246951,-151.0,0.00020547,2]
[349078840,1736962246961,-592.3,0.00020547,2]
[349078841,1736962246971,-309.282555,0.00020547,2]
[349078842,1736962246981,-309.282555,0.00020547,2]
[349078843,1736962246991,-151.0,0.00020547,2]
[349078844,1736962247000,-216.489252,0.00020547,2]
[349078845,1736962247009,-216.489252,0.00020547,2]
[349078846,1736962247019,-1020.063099,0.00020547,2]
[349078847,1736962247030,-500.0,0.00020547,3]
[349078848,1736962247040,-1020.063099,0.00020547,2]
[349078849,1736962247051,-151.0,0.00020547,2]
[349078850,1736962247061,-151.0,0.00020547,2]
[349078851,1736962247071,-9748.22,0.00020547,3]
[349078852,1736962247082,-500.0,0.00020547,3]
[349078853,1736962247092,-151.0,0.00020547,2]
[349078854,1736962247103,-2113.95,0.00020547,3]
[349078855,1736962247113,-500.0,0.00020547,3]
[349078856,1736962247123,-500.0,0.00020547,3]
[349078857,1736962247133,-500.0,0.00020547,3]
[349078858,1736962247144,-500.0,0.00020547,3]
[349078859,1736962247154,-1002.999865,0.00020547,2]
[349078860,1736962247164,-500.0,0.00020547,3]
[349078861,1736962247176,-557.53,0.00020547,3]
[349078862,1736962247187,-1002.999865,0.00020547,2]
[349078863,1736962247198,-1351.9307,0.00020547,2]
[349078864,1736962247208,-812.23,0.00020547,3]
[349078865,1736962247218,-1351.9307,0.00020547,2]
[349078866,1736962247229,-1119.83,0.00020547,3]
[349078867,1736962247240,-746.63,0.00020547,3]
[349078868,1736962247251,-500.0,0.00020547,3]
[349078869,1736962247261,-900.86256032,0.00020547,3]
[349078870,1736962247287,-500.0,0.00019176,2]
[349078871,1736962247298,-1590.29743968,0.00020547,3]
[349078872,1736962247308,-500.0,0.00020547,3]
[349078873,1736962247319,-500.64129354,0.00020547,3]
[349078874,1736962247328,-15248.44,0.00020547,3]
[349078875,1736962247338,-20.88747646,0.00020547,3]
[349078876,1736962247636,-3458.62459551,0.00018079,2]
[349078877,1736962247675,-3440.14388774,0.00018079,2]
[349078878,1736962247687,-446.20833079,0.00018079,2]
[349078879,1736962247704,-470.39892146,0.00018079,2]
[349078880,1736962247714,-500.0,0.00019176,2]
[349078881,1736962247724,-423.78361788,0.00019176,2]
[349078882,1736962247779,-76.21638212,0.00019176,2]
[349078883,1736962247790,-500.0,0.00019176,2]
[349078884,1736962247800,-500.0,0.00019176,2]
[349078885,1736962247810,-374.58975513,0.00019176,2]
[349078886,1736962247820,-500.0,0.00019176,2]
[349078887,1736962247830,-500.0,0.00019176,2]
[349078888,1736962247839,-500.0,0.00019178,2]
[349078889,1736962247849,-485.0,0.00019178,2]
[349078890,1736962247859,-78.07962224,0.00019315,3]
[349078891,1736962247870,-421.92037776,0.00019315,3]
[349078892,1736962247880,-394.5570572,0.00019452,3]
[349078893,1736962247962,-1000.87979257,0.00017898,14]
[349078894,1736962247972,-180.6429428,0.00019452,3]
[349078895,1736962247982,-1226.170844,0.000203,2]
[349078896,1736962247993,-1440.39252354,0.00020547,3]
[349078897,1736962248003,-500.0,0.00020547,3]
[349078898,1736962248013,-534.97,0.00020547,3]
[349078899,1736962248022,-1343.69,0.00020547,3]
[349078900,1736962248031,-500.0,0.00020547,3]
[349078901,1736962248042,-500.0,0.00020547,3]
[349078902,1736962248053,-161.704302,0.00020547,2]
[349078903,1736962248064,-500.0,0.00020547,3]
[349078904,1736962248074,-161.704302,0.00020547,2]
[349078905,1736962248085,-500.0,0.00020547,3]
[349078906,1736962248097,-1285.86,0.00020547,3]
[349078907,1736962248107,-500.0,0.00020547,3]
[349078908,1736962248117,-716.02,0.00020547,3]
[349078909,1736962248127,-208.26093578,0.00020547,3]
[349078910,1736962248220,-1226.170844,0.000203,2]
[349078911,1736962248231,-419.47906422,0.00020547,3]
[349078912,1736962248242,-769.62,0.00020547,3]
[349078913,1736962248252,-578.53,0.00020547,3]
[349078914,1736962248263,-4310.93,0.00020547,3]
[349078915,1736962248274,-500.0,0.00020547,3]
[349078916,1736962248284,-500.0,0.00020547,3]
[349078917,1736962248295,-460.04364829,0.00020547,3]
[349078918,1736962248305,-500.0,0.00020547,3]
[349078919,1736962248315,-500.0,0.00020552,2]
[349078920,1736962248325,-271.21790078,0.00020552,2]
[349078921,1736962248335,-1228.19384605,0.0002059,2]
[349078922,1736962248345,-158.225062,0.00020616,2]
[349078923,1736962248431,-281.19024557,0.00020662,2]
[349078924,1736962248446,-420.36048721,0.00020662,2]
[349078925,1736962248456,-500.0,0.00020662,2]
[349078926,1736962248466,-500.0,0.00020684,3]
[349078927,1736962248476,-500.0,0.00020684,3]
[349078928,1736962248488,-500.0,0.00020684,3]
[349078929,1736962248497,-500.0,0.00020684,3]
[349078930,1736962248507,-500.0,0.00020684,3]
[349078931,1736962248517,-500.0,0.00020684,3]
[349078932,1736962248527,-151.0,0.00020684,2]
[349078933,1736962248536,-500.0,0.00020684,3]
[349078934,1736962248546,-500.0,0.00020684,3]
[349078935,1736962248557,-151.0,0.00020684,2]
[349078936,1736962248567,-151.0,0.00020684,2]
[349078937,1736962248577,-500.0,0.00020684,3]
[349078938,1736962248588,-592.3,0.00020684,2]
[349078939,1736962248599,-9748.22,0.00020684,3]
[349078940,1736962248610,-640.62,0.00020684,3]
[349078941,1736962248620,-500.0,0.00020684,3]
[349078942,1736962248631,-500.0,0.00020684,3]
[349078943,1736962248643,-500.0,0.00020684,3]
[349078944,1736962248653,-500.0,0.00020684,3]
[349078945,1736962248664,-500.0,0.00020684,3]
[349078946,1736962248675,-812.23,0.00020684,3]
[349078947,1736962248685,-1119.83,0.00020684,3]
[349078948,1736962248697,-746.63,0.00020684,3]
[349078949,1736962248710,-500.0,0.00020684,3]
[349078950,1736962248721,-2491.16,0.00020684,3]
[349078951,1736962248731,-625.41387484,0.00020684,3]
[349078952,1736962248741,-15248.44,0.00020684,3]
[349078953,1736962248751,-1461.28,0.00020684,3]
[349078954,1736962248761,-500.0,0.00020684,3]
[349078955,1736962248772,-534.97,0.00020684,3]
[349078956,1736962248782,-1343.69,0.00020684,3]
[349078957,1736962248793,-500.0,0.00020684,3]
[349078958,1736962248804,-500.0,0.00020684,3]
[349078959,1736962248815,-416.51,0.00020684,3]
[349078960,1736962248825,-500.0,0.00020684,3]
[349078961,1736962248835,-1285.86,0.00020684,3]
[349078962,1736962248845,-500.0,0.00020684,3]
[349078963,1736962248855,-716.02,0.00020684,3]
[349078964,1736962248865,-627.74,0.00020684,3]
[349078965,1736962248875,-769.62,0.00020684,3]
[349078966,1736962248885,-578.53,0.00020684,3]
[349078967,1736962248898,-4310.93,0.00020684,3]
[349078968,1736962248908,-500.0,0.00020684,3]
[349078969,1736962248918,-500.0,0.00020684,3]
[349078970,1736962248928,-500.0,0.00020684,3]
[349078971,1736962248939,-158.225062,0.00020712,2]
[349078972,1736962248949,-654.79092288,0.00020721,2]
[349078973,1736962248957,-1228.19384605,0.00020728,2]
[349078974,1736962248967,-500.0,0.00020763,2]
[349078975,1736962248977,-500.0,0.00020763,2]
[349078976,1736962248987,-500.0,0.00020768,2]
[349078977,1736962248997,-522.12353528,0.00020768,2]
[349078978,1736962249007,-500.0,0.00020768,2]
[349078979,1736962249017,-9939.78,0.000208,2]
[349078980,1736962249027,-158.225062,0.00020808,2]
[349078981,1736962249037,-500.0,0.00020821,3]
[349078982,1736962249047,-500.0,0.00020821,3]
[349078983,1736962249057,-151.0,0.00020821,2]
[349078984,1736962249067,-151.0,0.00020821,2]
[349078985,1736962249076,-500.0,0.00020821,3]
[349078986,1736962249087,-151.0,0.00020821,2]
[349078987,1736962249097,-151.0,0.00020821,2]
[349078988,1736962249107,-500.0,0.00020821,3]
[349078989,1736962249116,-4002.79478,0.00020821,2]
[349078990,1736962249126,-4002.79478,0.00020821,2]
[349078991,1736962249135,-500.0,0.00020821,3]
[349078992,1736962249149,-500.0,0.00020821,3]
[349078993,1736962249159,-500.0,0.00020821,3]
[349078994,1736962249169,-557.28,0.00020821,3]
[349078995,1736962249179,-500.0,0.00020821,3]
[349078996,1736962249189,-592.3,0.00020821,2]
[349078997,1736962249199,-9748.22,0.00020821,3]
[349078998,1736962249209,-500.0,0.00020821,3]
[349078999,1736962249221,-500.0,0.00020821,3]
[349079000,1736962249231,-500.0,0.00020821,3]
[349079001,1736962249242,-500.0,0.00020821,3]
[349079002,1736962249253,-500.0,0.00020821,3]
[349079003,1736962249263,-812.23,0.00020821,3]
[349079004,1736962249274,-1119.83,0.00020821,3]
[349079005,1736962249286,-746.63,0.00020821,3]
[349079006,1736962249297,-500.0,0.00020821,3]
[349079007,1736962249308,-2491.16,0.00020821,3]
[349079008,1736962249318,-15248.44,0.00020821,3]
[349079009,1736962249330,-1461.28,0.00020821,3]
[349079010,1736962249340,-445.61,0.00020821,3]
[349079011,1736962249349,-534.97,0.00020821,3]
[349079012,1736962249359,-1343.69,0.00020821,3]
[349079013,1736962249370,-500.0,0.00020821,3]
[349079014,1736962249380,-218.78767021,0.00020821,3]
[349079015,1736962249391,-500.0,0.00020821,3]
[349079016,1736962249402,-1285.86,0.00020821,3]
[349079017,1736962249413,-987.807811,0.00020821,2]
[349079018,1736962249424,-500.0,0.00020821,3]
[349079019,1736962249435,-987.807811,0.00020821,2]
[349079020,1736962249445,-716.02,0.00020821,3]
[349079021,1736962249455,-627.74,0.00020821,3]
[349079022,1736962249465,-769.62,0.00020821,3]
[349079023,1736962249475,-151.0,0.00020821,2]
[349079024,1736962249486,-578.53,0.00020821,3]
[349079025,1736962249496,-4310.93,0.00020821,3]
[349079026,1736962249507,-500.0,0.00020821,3]
[349079027,1736962249517,-500.0,0.00020821,3]
[349079028,1736962249527,-3623.601474,0.00020821,2]
[349079029,1736962249537,-3623.601474,0.00020821,2]
[349079030,1736962249547,-500.0,0.00020821,3]
[349079031,1736962249557,-1226.170844,0.00020821,2]
[349079032,1736962249568,-1226.170844,0.00020821,2]
[349079033,1736962249578,-1228.19384605,0.00020866,2]
[349079034,1736962249588,-1000.0,0.00020889,2]
[349079035,1736962249598,-158.225062,0.00020904,2]
[349079036,1736962249609,-151.0,0.00020958,2]
[349079037,1736962249619,-151.0,0.00020958,2]
[349079038,1736962249629,-151.0,0.00020958,2]
[349079039,1736962249639,-151.0,0.00020958,2]
[349079040,1736962249650,-500.0,0.00020958,3]
[349079041,1736962249660,-500.0,0.00020958,3]
[349079042,1736962249669,-500.0,0.00020958,3]
[349079043,1736962249678,-500.0,0.00020958,3]
[349079044,1736962249688,-500.0,0.00020958,3]
[349079045,1736962249699,-500.0,0.00020958,3]